fUST/lending_fUST_20250811
["ID","MTS","AMOUNT","RATE_DAILY","PERIOD"]
[378450824,1754869840255,-460.0,0.00020353,2]
[378450826,1754869840265,-460.0,0.00020353,2]
[378450828,1754869840274,-460.0,0.00020353,2]
[378450830,1754869840283,-460.0,0.00020353,2]
[378450832,1754869840292,-500.0,0.00020353,2]
[378450834,1754869840302,-460.0,0.00020353,2]
[378450836,1754869840311,-460.0,0.00020353,2]
[378450838,1754869840321,-460.0,0.00020353,2]
[378450840,1754869840331,-500.0,0.00020353,2]
[378450842,1754869840340,-460.0,0.00020353,2]
[378450844,1754869840349,-303.81061069,0.00020353,2]
[378450846,1754869840359,-460.0,0.00020353,2]
[378450855,1754869840478,-460.0,0.00020353,2]
[378450856,1754869840488,-461.13033138,0.00020353,2]
[378450857,1754869840498,-460.0,0.00020353,2]
[378450858,1754869840507,-460.0,0.00020353,2]
[378450859,1754869840515,-397.18018548,0.00020353,2]
[378450860,1754869840525,-460.0,0.00020353,2]
[378450861,1754869840534,-151.0,0.00020353,2]
[378450862,1754869840543,-151.0,0.00020353,2]
[378450863,1754869840552,-151.0,0.00020353,2]
[378450864,1754869840561,-151.0,0.00020353,2]
[378450865,1754869840570,-231.7801,0.00020353,2]
[378450866,1754869840579,-460.0,0.00020354,2]
[378450867,1754869840588,-151.0,0.00020354,2]
[378450868,1754869840598,-151.0,0.00020354,2]
[378450869,1754869840607,-500.0,0.00020354,2]
[378450870,1754869840615,-151.0,0.00020354,2]
[378450871,1754869840625,-151.33647579,0.00020354,2]
[378450872,1754869840634,-151.0,0.00020354,2]
[378450873,1754869840643,-151.0,0.00020354,2]
[378450874,1754869840652,-151.0,0.00020354,2]
[378450875,1754869840661,-518.31215799,0.00020354,2]
[378450876,1754869840670,-460.0,0.00020354,2]
[378450877,1754869840679,-460.0,0.00020354,2]
[378450879,1754869840689,-460.0,0.00020354,2]
[378450880,1754869840698,-460.0,0.00020354,2]
[378450881,1754869840707,-151.0,0.00020354,2]
[378450882,1754869840715,-151.0,0.00020354,2]
[378450884,1754869840726,-151.0,0.00020354,2]
[378450886,1754869840736,-151.0,0.00020354,2]
[378450888,1754869840746,-151.24896388,0.00020354,2]
[378450890,1754869840755,-460.0,0.00020354,2]
[378450892,1754869840765,-460.0,0.00020354,2]
[378450894,1754869840773,-900.42,0.00020354,2]
[378450896,1754869840782,-494.81819549,0.00020354,2]
[378450898,1754869840791,-151.0,0.00020354,2]
[378450900,1754869840800,-151.0,0.00020354,2]
[378450902,1754869840813,-460.0,0.00020354,2]
[378450904,1754869840822,-460.0,0.00020354,2]
[378450906,1754869840832,-460.0,0.00020354,2]
[378450908,1754869840841,-151.0,0.00020354,2]
[378450910,1754869840851,-211.12979383,0.00020354,2]
[378450912,1754869840860,-460.0,0.00020354,2]
[378450914,1754869840869,-151.0,0.00020354,2]
[378450916,1754869840879,-151.0,0.00020354,2]
[378450918,1754869840889,-151.0,0.00020354,2]
[378450920,1754869840898,-500.0,0.00020354,2]
[378450922,1754869840908,-151.0,0.00020354,2]
[378450924,1754869840917,-151.0,0.00020354,2]
[378450926,1754869840927,-151.0,0.00020354,2]
[378450928,1754869840936,-460.0,0.00020354,2]
[378450930,1754869840945,-151.0,0.00020354,2]
[378450932,1754869840954,-500.0,0.0002036,2]
[378450934,1754869840964,-1232.06,0.00020361,2]
[378450936,1754869840974,-460.0,0.00020361,2]
[378450938,1754869840983,-151.0,0.00020361,2]
[378450940,1754869840992,-1473.21252103,0.00020395,2]
[378450942,1754869841001,-151.0,0.00020401,2]
[378450944,1754869841010,-151.0,0.00020418,2]
[378450946,1754869841019,-392.807,0.00020418,2]
[378450948,1754869841029,-4898.75190726,0.00020426,2]
[378450950,1754869841038,-151.0,0.00020452,2]
[378450952,1754869841047,-1473.21252103,0.00020466,2]
[378450954,1754869841056,-800.0,0.00020501,2]
[378450956,1754869841066,-151.0,0.00020501,2]
[378450958,1754869841075,-151.0,0.00020512,2]
[378450960,1754869841084,-151.0,0.00020512,2]
[378450962,1754869841093,-151.0,0.00020512,2]
[378450964,1754869841102,-987.74,0.00020514,3]
[378450966,1754869841111,-493.87,0.00020514,3]
[378450968,1754869841120,-246.93,0.00020514,3]
[378450970,1754869841129,-740.82,0.00020514,3]
[378450972,1754869841138,-500.0,0.00020523,2]
[378450974,1754869841147,-500.0,0.00020523,2]
[378450976,1754869841157,-500.0,0.00020523,2]
[378450978,1754869841166,-500.0,0.00020523,2]
[378450980,1754869841176,-500.0,0.00020523,2]
[378450982,1754869841185,-500.0,0.00020523,2]
[378450984,1754869841195,-500.0,0.00020523,2]
[378450986,1754869841204,-500.0,0.00020523,2]
[378450988,1754869841213,-500.0,0.00020523,2]
[378450990,1754869841222,-500.0,0.00020523,2]
[378450992,1754869841232,-212.32,0.00020523,2]
[378450994,1754869841241,-151.0,0.00020523,2]
[378450996,1754869841250,-200.51240394,0.00020523,2]
[378450998,1754869841259,-2207.60600404,0.00020524,2]
[378451000,1754869841268,-1500.0,0.00020524,7]
[378451002,1754869841277,-1500.0,0.00020524,7]
[378451004,1754869841287,-1500.0,0.00020524,7]
[378451006,1754869841296,-1500.0,0.00020524,7]
[378451008,1754869841305,-1500.0,0.00020524,7]
[378451010,1754869841314,-1500.0,0.00020524,7]
[378451012,1754869841323,-1500.0,0.00020524,7]
[378451014,1754869841333,-1500.0,0.00020524,7]
[378451016,1754869841341,-1500.0,0.00020524,7]
[378451018,1754869841351,-1500.0,0.00020524,7]
[378451020,1754869841360,-1500.0,0.00020524,7]
[378451022,1754869841370,-1500.0,0.00020524,7]
[378451024,1754869841380,-1500.0,0.00020524,7]
[378451026,1754869841389,-1500.0,0.00020524,7]
[378451028,1754869841398,-1500.0,0.00020524,7]
[378451030,1754869841407,-1500.0,0.00020524,7]
[378451032,1754869841416,-1500.0,0.00020524,7]
[378451034,1754869841425,-1500.0,0.00020524,7]
[378451036,1754869841434,-1500.0,0.00020524,7]
[378451038,1754869841444,-1500.0,0.00020524,7]
[378451040,1754869841453,-1500.0,0.00020524,7]
[378451042,1754869841462,-1500.0,0.00020524,7]
[378451044,1754869841471,-1500.0,0.00020524,7]
[378451046,1754869841480,-1500.0,0.00020524,7]
[378451048,1754869841489,-444.95993,0.00020524,7]
[378451050,1754869841499,-172.774407,0.00020524,2]
[378451052,1754869841508,-312.16666667,0.00020524,7]
[378451055,1754869841527,-461.62346162,0.00020524,7]
[378451057,1754869841538,-370000.0,0.00020524,2]
[378451059,1754869841548,-460.0,0.00020526,2]
[378451061,1754869841558,-460.0,0.00020526,2]
[378451063,1754869841567,-460.0,0.00020526,2]
[378451065,1754869841578,-460.0,0.00020526,2]
[378451067,1754869841588,-460.0,0.00020526,2]
[378451069,1754869841598,-460.0,0.00020526,2]
[378451071,1754869841607,-460.0,0.00020526,2]
[378451073,1754869841617,-460.0,0.00020526,2]
[378451076,1754869841627,-460.0,0.00020526,2]
[378451078,1754869841636,-460.0,0.00020526,2]
[378451080,1754869841646,-460.0,0.00020526,2]
[378451082,1754869841655,-460.0,0.00020526,2]
[378451084,1754869841665,-460.0,0.00020526,2]
[378451086,1754869841675,-460.0,0.00020526,2]
[378451088,1754869841684,-460.0,0.00020526,2]
[378451090,1754869841694,-460.0,0.00020526,2]
[378451092,1754869841703,-460.0,0.00020526,2]
[378451094,1754869841716,-460.0,0.00020526,2]
[378451096,1754869841725,-460.0,0.00020526,2]
[378451098,1754869841735,-595.17,0.00020526,2]
[378451100,1754869841744,-460.0,0.00020526,2]
[378451102,1754869841754,-460.0,0.00020526,2]
[378451104,1754869841763,-460.0,0.00020526,2]
[378451106,1754869841772,-600.0,0.00020526,2]
[378451108,1754869841782,-460.0,0.00020527,2]
[378451110,1754869841793,-1473.21252103,0.00020536,2]
[378451112,1754869841804,-800.0,0.00020544,2]
[378451114,1754869841815,-151.4297,0.00020547,2]
[378451116,1754869841824,-800.0,0.0002055,2]
[378451118,1754869841834,-800.0,0.00020559,2]
[378451120,1754869841843,-800.0,0.0002057,2]
[378451122,1754869841853,-500.0,0.00020573,2]
[378451124,1754869841862,-500.0,0.00020573,2]
[378451127,1754869841872,-519.63095064,0.00020573,2]
[378451129,1754869841881,-506.47691141,0.00020573,2]
[378451131,1754869841890,-500.0,0.00020573,2]
[378451133,1754869841900,-500.0,0.00020573,2]
[378451134,1754869841909,-500.0,0.00020573,2]
[378451137,1754869841918,-500.0,0.00020573,2]
[378451139,1754869841928,-500.0,0.00020573,2]
[378451140,1754869841937,-463.47440611,0.00020573,2]
[378451142,1754869841947,-500.0,0.00020573,2]
[378451144,1754869841956,-211.96256312,0.00020573,2]
[378451147,1754869841966,-500.0,0.00020573,2]
[378451149,1754869841975,-500.0,0.00020573,2]
[378451151,1754869841984,-578.9513623,0.000206,2]
[378451152,1754869841994,-800.0,0.00020604,2]
[378451155,1754869842003,-800.0,0.00020607,2]
[378451157,1754869842013,-409.08081793,0.00020613,2]
[378451159,1754869842022,-460.0,0.00020614,2]
[378451161,1754869842031,-460.0,0.00020614,2]
[378451163,1754869842040,-800.0,0.00020625,2]
[378451164,1754869842049,-466.47203934,0.00020625,2]
[378451167,1754869842058,-348.45,0.00020625,2]
[378451168,1754869842067,-537.71,0.00020625,2]
[378451170,1754869842076,-460.0,0.00020625,2]
[378451173,1754869842086,-679.04,0.00020625,2]
[378451175,1754869842095,-460.0,0.00020625,2]
[378451176,1754869842105,-460.0,0.00020625,2]
[378451178,1754869842114,-502.05,0.00020625,2]
[378451181,1754869842125,-460.0,0.00020625,2]
[378451183,1754869842134,-1052.11,0.00020625,2]
[378451185,1754869842144,-460.0,0.00020625,2]
[378451187,1754869842153,-460.0,0.00020625,2]
[378451189,1754869842161,-460.0,0.00020625,2]
[378451191,1754869842171,-460.0,0.00020625,2]
[378451193,1754869842180,-460.0,0.00020626,2]
[378451195,1754869842189,-460.0,0.00020626,2]
[378451197,1754869842198,-460.0,0.00020626,2]
[378451199,1754869842207,-460.0,0.00020626,2]
[378451200,1754869842216,-500.0,0.00020626,2]
[378451203,1754869842225,-460.0,0.00020626,2]
[378451205,1754869842235,-460.0,0.00020626,2]
[378451207,1754869842245,-460.0,0.00020627,2]
[378451209,1754869842254,-460.0,0.00020627,2]
[378451211,1754869842263,-460.0,0.00020627,2]
[378451213,1754869842272,-460.0,0.00020627,2]
[378451215,1754869842281,-460.0,0.00020627,2]
[378451217,1754869842290,-460.0,0.00020627,2]
[378451219,1754869842300,-460.0,0.00020627,2]
[378451221,1754869842309,-460.0,0.00020627,2]
[378451223,1754869842318,-460.0,0.00020627,2]
[378451225,1754869842327,-460.0,0.00020627,2]
[378451227,1754869842336,-460.0,0.00020627,2]
[378451229,1754869842345,-466.1327799,0.00020627,2]
[378451231,1754869842355,-460.0,0.00020627,2]
[378451232,1754869842364,-460.0,0.00020627,2]
[378451234,1754869842373,-460.0,0.00020627,2]
[378451237,1754869842383,-460.0,0.00020627,2]
[378451239,1754869842392,-460.0,0.00020627,2]
[378451240,1754869842401,-460.0,0.00020627,2]
[378451242,1754869842411,-460.0,0.00020627,2]
[378451245,1754869842420,-460.0,0.00020627,2]
[378451247,1754869842429,-460.0,0.00020627,2]
[378451249,1754869842438,-500.0,0.00020628,2]
[378451251,1754869842447,-151.0,0.00020628,2]
[378451252,1754869842456,-151.0,0.00020628,2]
[378451255,1754869842466,-151.0,0.00020628,2]
[378451257,1754869842475,-151.0,0.00020628,2]
[378451258,1754869842485,-628.76125369,0.00020628,2]
[378451260,1754869842495,-153.639781,0.00020628,2]
[378451262,1754869842504,-151.0,0.00020628,2]
[378451265,1754869842513,-192.215835,0.00020628,2]
[378451267,1754869842523,-183.204324,0.00020628,2]
[378451269,1754869842532,-460.0,0.00020628,2]
[378451271,1754869842541,-460.0,0.00020628,2]
[378451272,1754869842550,-476.98,0.00020628,2]
[378451275,1754869842560,-900.42,0.00020628,2]
[378451276,1754869842569,-460.0,0.00020628,2]
[378451279,1754869842582,-460.0,0.00020628,2]
[378451281,1754869842592,-460.0,0.00020628,2]
[378451283,1754869842601,-460.0,0.00020628,2]
[378451285,1754869842610,-1232.06,0.00020635,2]
[378451287,1754869842619,-500.0,0.00020635,2]
[378451289,1754869842629,-460.0,0.00020635,2]
[378451291,1754869842638,-500.0,0.00020636,2]
[378451293,1754869842647,-151.0,0.00020648,2]
[378451295,1754869842657,-151.0,0.00020648,2]
[378451297,1754869842667,-151.0,0.00020648,2]
[378451299,1754869842676,-151.0,0.00020648,2]
[378451301,1754869842685,-304.580086,0.00020648,2]
[378451303,1754869842695,-304.580086,0.00020648,2]
[378451305,1754869842705,-500.0,0.00020648,2]
[378451307,1754869842715,-151.0,0.00020649,2]
[378451309,1754869842725,-151.0,0.00020649,2]
[378451311,1754869842735,-151.0,0.00020649,2]
[378451313,1754869842744,-151.0,0.00020649,2]
[378451316,1754869842754,-151.0,0.00020649,2]
[378451318,1754869842763,-304.580086,0.00020649,2]
[378451320,1754869842773,-304.580086,0.00020649,2]
[378451322,1754869842782,-460.0,0.00020649,2]
[378451324,1754869842791,-460.0,0.00020649,2]
[378451326,1754869842801,-460.0,0.00020649,2]
[378451328,1754869842815,-151.0,0.0002065,2]
[378451330,1754869842824,-167.22800198,0.0002065,2]
[378451332,1754869842834,-151.0,0.0002065,2]
[378451334,1754869842843,-151.0,0.0002065,2]
[378451336,1754869842853,-152.940225,0.0002065,2]
[378451338,1754869842863,-151.0,0.0002065,2]
[378451340,1754869842872,-151.0,0.0002065,2]
[378451342,1754869842884,-151.0,0.0002065,2]
[378451344,1754869842894,-151.0,0.0002065,2]
[378451346,1754869842903,-151.0,0.0002065,2]
[378451363,1754869842913,-183.2057,0.0002065,2]
[378451366,1754869843046,-151.0,0.0002065,2]
[378451368,1754869843055,-151.0,0.0002065,2]
[378451370,1754869843064,-151.0,0.0002065,2]
[378451372,1754869843073,-151.0,0.0002065,2]
[378451374,1754869843082,-151.0,0.0002065,2]
[378451376,1754869843092,-151.0,0.0002065,2]
[378451378,1754869843101,-151.0,0.0002065,2]
[378451380,1754869843110,-151.0,0.0002065,2]
[378451382,1754869843119,-151.0,0.0002065,2]
[378451384,1754869843128,-151.0,0.0002065,2]
[378451386,1754869843138,-151.0,0.0002065,2]
[378451388,1754869843147,-304.580086,0.0002065,2]
[378451390,1754869843156,-304.580086,0.0002065,2]
[378451392,1754869843166,-304.580086,0.0002065,2]
[378451394,1754869843175,-304.580086,0.0002065,2]
[378451396,1754869843184,-304.580086,0.0002065,2]
[378451398,1754869843193,-304.580086,0.0002065,2]
[378451400,1754869843202,-151.0,0.0002065,2]
[378451402,1754869843211,-151.0,0.0002065,2]
[378451404,1754869843220,-151.0,0.0002065,2]
[378451406,1754869843230,-151.0,0.0002065,2]
[378451408,1754869843239,-211.321608,0.00020651,2]
[378451410,1754869843249,-151.0,0.00020651,2]
[378451412,1754869843258,-151.0,0.00020651,2]
[378451414,1754869843267,-151.0,0.00020651,2]
[378451416,1754869843276,-151.0,0.00020654,2]
[378451418,1754869843285,-500.0,0.00020661,2]
[378451420,1754869843295,-151.0,0.00020662,2]
[378451422,1754869843308,-151.0,0.00020662,2]
[378451424,1754869843317,-151.0,0.00020662,2]
[378451426,1754869843326,-245.797146,0.00020662,2]
[378451428,1754869843336,-304.580086,0.00020662,2]
[378451430,1754869843345,-304.580086,0.00020662,2]
[378451432,1754869843354,-151.0,0.00020662,2]
[378451434,1754869843363,-151.0,0.00020663,2]
[378451436,1754869843372,-151.0,0.00020663,2]
[378451438,1754869843381,-151.0,0.00020663,2]
[378451440,1754869843390,-522.83916595,0.00020673,2]
[378451442,1754869843399,-500.0,0.00020673,2]
[378451444,1754869843408,-500.0,0.00020673,2]
[378451446,1754869843417,-500.0,0.00020673,2]
[378451448,1754869843426,-500.0,0.00020673,2]
[378451450,1754869843435,-151.0,0.00020706,2]
[378451452,1754869843446,-151.0,0.00020706,2]
[378451454,1754869843455,-151.0,0.00020708,2]
[378451457,1754869843465,-151.0,0.00020708,2]
[378451460,1754869843474,-151.0,0.00020708,2]
[378451462,1754869843483,-255.0,0.00020789,2]
[378451464,1754869843492,-151.0,0.00020791,2]
[378451466,1754869843501,-304.580086,0.000208,2]
[378451468,1754869843510,-304.580086,0.000208,2]
[378451470,1754869843520,-460.0,0.000208,2]
[378451472,1754869843529,-460.0,0.000208,2]
[378451474,1754869843538,-460.0,0.000208,2]
[378451476,1754869843548,-460.0,0.000208,2]
[378451478,1754869843558,-460.0,0.000208,2]
[378451480,1754869843566,-460.0,0.000208,2]
[378451483,1754869843576,-460.0,0.000208,2]
[378451485,1754869843585,-460.0,0.000208,2]
[378451486,1754869843595,-460.0,0.000208,2]
[378451488,1754869843604,-460.0,0.000208,2]
[378451491,1754869843614,-460.0,0.000208,2]
[378451493,1754869843624,-460.0,0.000208,2]
[378451495,1754869843633,-460.0,0.000208,2]
[378451497,1754869843643,-460.0,0.000208,2]
[378451499,1754869843652,-460.0,0.000208,2]
[378451501,1754869843661,-460.0,0.000208,2]
[378451503,1754869843670,-460.0,0.000208,2]
[378451505,1754869843680,-595.17,0.000208,2]
[378451507,1754869843689,-460.0,0.000208,2]
[378451509,1754869843699,-460.0,0.000208,2]
[378451511,1754869843708,-460.0,0.000208,2]
[378451513,1754869843717,-220.74513888,0.00020801,2]
[378451515,1754869843727,-500.0,0.00020809,2]
[378451517,1754869843736,-10000.0,0.00020809,2]
[378451519,1754869843746,-151.0,0.0002081,2]
[378451521,1754869843755,-304.580086,0.0002081,2]
[378451523,1754869843764,-304.580086,0.0002081,2]
[378451525,1754869843774,-151.0,0.00020854,2]
[378451527,1754869843783,-151.0,0.00020854,2]
[378451529,1754869843792,-229.952662,0.00020871,2]
[378451531,1754869843801,-229.952662,0.00020871,2]
[378451533,1754869843815,-151.0,0.00020871,2]
[378451535,1754869843824,-152.357585,0.00020873,2]
[378451537,1754869843833,-460.0,0.00020888,2]
[378451539,1754869843843,-460.0,0.00020888,2]
[378451541,1754869843852,-460.0,0.00020899,2]
[378451543,1754869843861,-679.04,0.00020899,2]
[378451545,1754869843870,-460.0,0.00020899,2]
[378451547,1754869843881,-460.0,0.00020899,2]
[378451549,1754869843890,-460.0,0.00020899,2]
[378451552,1754869843900,-1052.11,0.00020899,2]
[378451554,1754869843909,-460.0,0.00020899,2]
[378451556,1754869843918,-460.0,0.00020899,2]
[378451558,1754869843927,-460.0,0.00020899,2]
[378451560,1754869843936,-151.0,0.000209,2]
[378451562,1754869843946,-151.0,0.000209,2]
[378451564,1754869843955,-151.0,0.000209,2]
[378451566,1754869843965,-460.0,0.000209,2]
[378451568,1754869843974,-460.0,0.000209,2]
[378451571,1754869843984,-460.0,0.000209,2]
[378451573,1754869843993,-460.0,0.000209,2]
[378451574,1754869844002,-460.0,0.000209,2]
[378451576,1754869844011,-460.0,0.000209,2]
[378451579,1754869844021,-460.0,0.00020901,2]
[378451580,1754869844033,-460.0,0.00020901,2]
[378451582,1754869844049,-460.0,0.00020901,2]
[378451585,1754869844066,-460.0,0.00020901,2]
[378451586,1754869844077,-460.0,0.00020901,2]
[378451589,1754869844087,-460.0,0.00020901,2]
[378451591,1754869844097,-460.0,0.00020901,2]
[378451593,1754869844107,-460.0,0.00020901,2]
[378451595,1754869844116,-460.0,0.00020901,2]
[378451597,1754869844127,-460.0,0.00020901,2]
[378451599,1754869844136,-460.0,0.00020901,2]
[378451601,1754869844145,-460.0,0.00020901,2]
[378451603,1754869844155,-460.0,0.00020901,2]
[378451605,1754869844164,-460.0,0.00020901,2]
[378451607,1754869844173,-460.0,0.00020901,2]
[378451609,1754869844183,-460.0,0.00020901,2]
[378451611,1754869844192,-379.3366273,0.00020901,2]
[378451613,1754869844201,-198.0,0.00020902,2]
[378451615,1754869844210,-284.97187778,0.00020902,2]
[378451617,1754869844219,-198.0,0.00020902,2]
[378451619,1754869844228,-151.0,0.00020902,2]
[378451621,1754869844237,-151.0,0.00020902,2]
[378451623,1754869844246,-460.0,0.00020902,2]
[378451624,1754869844255,-900.42,0.00020902,2]
[378451627,1754869844264,-460.0,0.00020902,2]
[378451628,1754869844274,-460.0,0.00020902,2]
[378451630,1754869844283,-460.0,0.00020902,2]
[378451632,1754869844292,-460.0,0.00020902,2]
[378451635,1754869844301,-500.0,0.00020908,2]
[378451636,1754869844310,-304.580086,0.00020909,2]
[378451639,1754869844320,-304.580086,0.00020909,2]
[378451640,1754869844329,-1232.06,0.00020909,2]
[378451642,1754869844338,-460.0,0.00020909,2]
[378451644,1754869844347,-151.0,0.00020923,2]
[378451646,1754869844357,-460.0,0.00020923,2]
[378451649,1754869844366,-152.196196,0.00020924,2]
[378451651,1754869844375,-151.0,0.00020936,2]
[378451652,1754869844384,-151.0,0.00020936,2]
[378451655,1754869844394,-151.0,0.00020958,2]
[378451657,1754869844403,-151.0,0.00020958,2]
[378451658,1754869844412,-151.0,0.00020962,2]
[378451660,1754869844421,-500.0,0.0002097,2]
[378451663,1754869844431,-151.0,0.00020971,2]
[378451664,1754869844440,-151.0,0.00020971,2]
[378451667,1754869844449,-151.0,0.00020971,2]
[378451669,1754869844459,-151.0,0.00020971,2]
[378451671,1754869844468,-151.0,0.00020971,2]
[378451673,1754869844478,-318.247902,0.00020971,2]
[378451675,1754869844487,-318.247902,0.00020971,2]
[378451677,1754869844497,-151.0,0.00020971,2]
[378451678,1754869844506,-151.0,0.00020971,2]
[378451680,1754869844516,-151.0,0.00020971,2]
[378451683,1754869844526,-151.0,0.00020971,2]
[378451684,1754869844535,-151.0,0.00020971,2]
[378451686,1754869844545,-237.829517,0.00020971,2]
[378451688,1754869844554,-153.061038,0.00020971,2]
[378451690,1754869844563,-345.317761,0.00020971,2]
[378451692,1754869844572,-345.317761,0.00020971,2]
[378451694,1754869844581,-151.0,0.00020971,2]
[378451696,1754869844591,-151.0,0.00020971,2]
[378451698,1754869844600,-350.491345,0.00020971,2]
[378451700,1754869844609,-350.491345,0.00020971,2]
[378451702,1754869844619,-151.0,0.00020971,2]
[378451704,1754869844628,-229.952662,0.00020971,2]
[378451706,1754869844637,-229.952662,0.00020971,2]
[378451708,1754869844646,-151.0,0.00020971,2]
[378451710,1754869844656,-151.0,0.00020971,2]
[378451712,1754869844665,-151.0,0.00020971,2]
[378451714,1754869844674,-282.80798,0.00020971,2]
[378451715,1754869844683,-304.580086,0.00020971,2]
[378451716,1754869844693,-304.580086,0.00020971,2]
[378451717,1754869844702,-151.0,0.00020971,2]
[378451718,1754869844712,-151.0,0.00020981,2]
[378451719,1754869844722,-151.0,0.00020981,2]
[378451720,1754869844731,-151.0,0.00021035,2]
[378451721,1754869844742,-151.0,0.00021035,2]
[378451722,1754869844752,-151.0,0.00021035,2]
[378451723,1754869844762,-551.422339,0.00021035,2]
[378451724,1754869844774,-551.422339,0.00021035,2]
[378451725,1754869844784,-151.0,0.00021035,2]
[378451726,1754869844794,-151.0,0.00021036,2]
[378451727,1754869844805,-151.0,0.00021036,2]
[378451728,1754869844817,-151.0,0.00021036,2]
[378451729,1754869844827,-151.0,0.00021044,2]
[378451730,1754869844837,-151.0,0.00021044,2]
[378451731,1754869844847,-151.0,0.00021046,2]
[378451732,1754869844857,-151.0,0.00021046,2]
[378451733,1754869844868,-229.952662,0.00021046,2]
[378451734,1754869844878,-229.952662,0.00021046,2]
[378451735,1754869844888,-151.0,0.00021046,2]
[378451737,1754869844898,-151.0,0.00021046,2]
[378451738,1754869844907,-192.821781,0.00021046,2]
[378451740,1754869844917,-312.16666667,0.00021071,3]
[378451742,1754869844926,-151.0,0.00021071,2]
[378451744,1754869844936,-151.0,0.00021071,2]
[378451746,1754869844945,-151.0,0.00021071,2]
[378451748,1754869844955,-551.422339,0.00021071,2]
[378451750,1754869844965,-551.422339,0.00021071,2]
[378451752,1754869844974,-318.247902,0.00021071,2]
[378451754,1754869844984,-318.247902,0.00021071,2]
[378451756,1754869844995,-151.0,0.00021071,2]
[378451758,1754869845003,-151.0,0.00021071,2]
[378451760,1754869845012,-151.0,0.00021071,2]
[378451762,1754869845022,-350.491345,0.00021071,2]
[378451763,1754869845031,-350.491345,0.00021071,2]
[378451765,1754869845041,-500.0,0.00021073,2]
[378451767,1754869845050,-460.0,0.00021074,2]
[378451769,1754869845059,-460.0,0.00021074,2]
[378451771,1754869845069,-460.0,0.00021074,2]
[378451774,1754869845079,-200.10525927,0.00021074,2]
[378451775,1754869845088,-460.0,0.00021074,2]
[378451777,1754869845098,-460.0,0.00021074,2]
[378451779,1754869845107,-460.0,0.00021074,2]
[378451781,1754869845116,-460.0,0.00021074,2]
[378451783,1754869845126,-460.0,0.00021074,2]
[378451785,1754869845135,-460.0,0.00021074,2]
[378451787,1754869845145,-460.0,0.00021074,2]
[378451789,1754869845155,-460.0,0.00021074,2]
[378451791,1754869845164,-460.0,0.00021074,2]
[378451793,1754869845173,-460.0,0.00021074,2]
[378451795,1754869845183,-595.17,0.00021074,2]
[378451797,1754869845192,-460.0,0.00021074,2]
[378451799,1754869845201,-460.0,0.00021074,2]
[378451801,1754869845210,-460.0,0.00021074,2]
[378451803,1754869845219,-151.0,0.00021105,2]
[378451805,1754869845229,-278.0,0.00021107,2]